[Event "*** Titled Tuesday Blitz"]
[Site "Chess.com"]
[Date "2020.02.04"]
[Round "4"]
[White "hongnhung1234"]
[Black "Kira170"]
[Result "0-1"]
[WhiteElo "2280"]
[BlackElo "2505"]
[TimeControl "180+2"]
[EndTime "9:53:30 PST"]
[Termination "Kira170 won by checkmate"]

1. d4 {[%clk 0:03:01.9]} 1... Nf6 {[%clk 0:03:00.2]} 2. c4 {[%clk 0:03:03.8]}
2... e6 {[%clk 0:03:01]} 3. Nf3 {[%clk 0:03:05.7]} 3... d5 {[%clk 0:03:02.2]} 4.
g3 {[%clk 0:03:07.6]} 4... g6 {[%clk 0:03:02.8]} 5. Bg2 {[%clk 0:03:09.5]} 5...
Bg7 {[%clk 0:03:04.2]} 6. O-O {[%clk 0:03:11.4]} 6... O-O {[%clk 0:03:05.8]} 7.
Qc2 {[%clk 0:03:11.1]} 7... b6 {[%clk 0:03:06.5]} 8. cxd5 {[%clk 0:03:10.9]}
8... exd5 {[%clk 0:03:07]} 9. Nc3 {[%clk 0:03:11.7]} 9... Bb7 {[%clk 0:03:07.9]}
10. Bf4 {[%clk 0:03:12]} 10... Na6 {[%clk 0:03:08.1]} 11. Rfd1 {[%clk
0:03:11.7]} 11... c6 {[%clk 0:03:08.3]} 12. Rac1 {[%clk 0:03:11.8]} 12... Nc7
{[%clk 0:03:09.1]} 13. e4 {[%clk 0:03:11.3]} 13... dxe4 {[%clk 0:02:55.6]} 14.
Nxe4 {[%clk 0:03:13.2]} 14... Nxe4 {[%clk 0:02:43.9]} 15. Qxe4 {[%clk
0:03:15.1]} 15... Nd5 {[%clk 0:02:45.3]} 16. Be5 {[%clk 0:03:09.3]} 16... Re8
{[%clk 0:02:45]} 17. Qd3 {[%clk 0:03:01]} 17... f6 {[%clk 0:02:45.3]} 18. Bf4
{[%clk 0:03:00.8]} 18... Nxf4 {[%clk 0:02:45.3]} 19. gxf4 {[%clk 0:03:02.7]}
19... Qd6 {[%clk 0:02:46.4]} 20. Qd2 {[%clk 0:02:55.2]} 20... Rad8 {[%clk
0:02:46.3]} 21. Re1 {[%clk 0:02:54.1]} 21... Bh6 {[%clk 0:02:46.4]} 22. Qc3
{[%clk 0:02:36.9]} 22... Bxf4 {[%clk 0:02:44.7]} 23. Rxe8+ {[%clk 0:02:36.9]}
23... Rxe8 {[%clk 0:02:46.6]} 24. Rd1 {[%clk 0:02:35.3]} 24... c5 {[%clk
0:02:46.8]} 25. Qc2 {[%clk 0:02:24.2]} 25... Rd8 {[%clk 0:02:29.7]} 26. Qc4+
{[%clk 0:02:01.8]} 26... Kg7 {[%clk 0:02:24.4]} 27. h3 {[%clk 0:02:01]} 27...
Bxf3 {[%clk 0:02:09.7]} 28. Bxf3 {[%clk 0:01:58.9]} 28... cxd4 {[%clk
0:02:10.9]} 29. Be4 {[%clk 0:01:54.3]} 29... Be5 {[%clk 0:02:10.9]} 30. a3
{[%clk 0:01:52.8]} 30... f5 {[%clk 0:02:10.5]} 31. Bd3 {[%clk 0:01:51.9]} 31...
Rd7 {[%clk 0:02:09]} 32. Qb4 {[%clk 0:01:50]} 32... Qf6 {[%clk 0:02:09.5]} 33.
Re1 {[%clk 0:01:47.3]} 33... Qg5+ {[%clk 0:02:09.3]} 34. Kf1 {[%clk 0:01:46.4]}
34... Qf4 {[%clk 0:01:57.9]} 35. Qb5 {[%clk 0:01:44.6]} 35... Re7 {[%clk
0:01:58.9]} 36. Qd5 {[%clk 0:01:42.8]} 36... Qh2 {[%clk 0:01:57.3]} 37. Qg2
{[%clk 0:01:39.5]} 37... Qxg2+ {[%clk 0:01:57.4]} 38. Kxg2 {[%clk 0:01:41.4]}
38... Kf6 {[%clk 0:01:59.2]} 39. Kf3 {[%clk 0:01:39.3]} 39... Rc7 {[%clk
0:01:58.1]} 40. Kg2 {[%clk 0:01:40]} 40... Bf4 {[%clk 0:01:54.9]} 41. h4 {[%clk
0:01:35.7]} 41... h6 {[%clk 0:01:51]} 42. Re8 {[%clk 0:01:33.9]} 42... Bc1
{[%clk 0:01:48.3]} 43. Re2 {[%clk 0:01:34.2]} 43... Rc5 {[%clk 0:01:27.6]} 44.
Kg3 {[%clk 0:01:32.1]} 44... a5 {[%clk 0:01:16.1]} 45. a4 {[%clk 0:01:29.6]}
45... Rc7 {[%clk 0:01:08]} 46. f4 {[%clk 0:01:27.2]} 46... Be3 {[%clk
0:01:06.9]} 47. Rc2 {[%clk 0:01:27.8]} 47... Rxc2 {[%clk 0:00:38.9]} 48. Bxc2
{[%clk 0:01:29.7]} 48... Ke6 {[%clk 0:00:38.4]} 49. Bd3 {[%clk 0:01:26.2]} 49...
Kd5 {[%clk 0:00:38.6]} 50. Kf3 {[%clk 0:01:21.7]} 50... Kc5 {[%clk 0:00:38.9]}
51. Bb5 {[%clk 0:01:20.3]} 51... Kb4 {[%clk 0:00:37.5]} 52. Ke2 {[%clk
0:01:20.8]} 52... Bxf4 {[%clk 0:00:37.1]} 53. Kd1 {[%clk 0:01:18]} 53... Kb3
{[%clk 0:00:32.4]} 54. Be8 {[%clk 0:01:16]} 54... g5 {[%clk 0:00:33.3]} 55. hxg5
{[%clk 0:01:13.3]} 55... hxg5 {[%clk 0:00:34.4]} 56. Bd7 {[%clk 0:01:12]} 56...
g4 {[%clk 0:00:35.6]} 57. Bxf5 {[%clk 0:01:10.5]} 57... g3 {[%clk 0:00:36.9]}
58. Be4 {[%clk 0:01:09.2]} 58... Kxb2 {[%clk 0:00:37.9]} 59. Ke1 {[%clk
0:01:08]} 59... Kc3 {[%clk 0:00:36.6]} 60. Bf3 {[%clk 0:01:07.1]} 60... d3
{[%clk 0:00:37.5]} 61. Bd1 {[%clk 0:01:05.1]} 61... Kd4 {[%clk 0:00:37.9]} 62.
Kf1 {[%clk 0:01:01.6]} 62... Ke3 {[%clk 0:00:37.7]} 63. Bg4 {[%clk 0:01:00.2]}
63... b5 {[%clk 0:00:37.6]} 64. Bd1 {[%clk 0:00:58.1]} 64... b4 {[%clk
0:00:37.2]} 65. Kg2 {[%clk 0:00:56.5]} 65... Kd2 {[%clk 0:00:38.4]} 66. Bh5
{[%clk 0:00:54.6]} 66... b3 {[%clk 0:00:39.1]} 67. Kf3 {[%clk 0:00:54]} 67... b2
{[%clk 0:00:41]} 68. Kxf4 {[%clk 0:00:54.6]} 68... b1=Q {[%clk 0:00:42.9]} 69.
Kxg3 {[%clk 0:00:56.5]} 69... Qb4 {[%clk 0:00:43.6]} 70. Bg4 {[%clk 0:00:56.6]}
70... Qxa4 {[%clk 0:00:44.2]} 71. Kh4 {[%clk 0:00:58.5]} 71... Qb4 {[%clk
0:00:46.1]} 72. Kh5 {[%clk 0:01:00.4]} 72... a4 {[%clk 0:00:48]} 73. Kh6 {[%clk
0:01:01.3]} 73... a3 {[%clk 0:00:49.9]} 74. Kh7 {[%clk 0:01:02.4]} 74... a2
{[%clk 0:00:50.9]} 75. Bf5 {[%clk 0:01:03.7]} 75... a1=Q {[%clk 0:00:52.8]} 76.
Bg6 {[%clk 0:01:04.8]} 76... Qf6 {[%clk 0:00:51.3]} 77. Kh6 {[%clk 0:01:04.7]}
77... Qbh4# {[%clk 0:00:50.9]} 0-1

[Event "*** Titled Tuesday Blitz"]
[Site "Chess.com"]
[Date "2020.02.04"]
[Round "4"]
[White "Atanejhad"]
[Black "gmcorrales"]
[Result "0-1"]
[WhiteElo "2598"]
[BlackElo "2826"]
[TimeControl "180+2"]
[EndTime "9:53:42 PST"]
[Termination "gmcorrales won by resignation"]

1. e4 {[%clk 0:03:01.9]} 1... c5 {[%clk 0:03:00.8]} 2. Nf3 {[%clk 0:03:02.9]}
2... d6 {[%clk 0:03:02.3]} 3. d4 {[%clk 0:03:04.3]} 3... cxd4 {[%clk 0:03:04.2]}
4. Nxd4 {[%clk 0:03:05.8]} 4... Nf6 {[%clk 0:03:05.1]} 5. Nc3 {[%clk 0:03:07.3]}
5... a6 {[%clk 0:03:06.8]} 6. Be3 {[%clk 0:03:08.8]} 6... e5 {[%clk 0:03:06.9]}
7. Nb3 {[%clk 0:03:10.3]} 7... Be7 {[%clk 0:03:08.2]} 8. f3 {[%clk 0:03:11.3]}
8... O-O {[%clk 0:03:08.9]} 9. Qd2 {[%clk 0:03:12.7]} 9... Be6 {[%clk
0:03:01.8]} 10. O-O-O {[%clk 0:03:13.4]} 10... Nbd7 {[%clk 0:03:03.3]} 11. g4
{[%clk 0:03:14.7]} 11... b5 {[%clk 0:03:03.7]} 12. g5 {[%clk 0:03:15.9]} 12...
Nh5 {[%clk 0:03:04.3]} 13. Rg1 {[%clk 0:03:10.9]} 13... Nb6 {[%clk 0:03:02]} 14.
Nd5 {[%clk 0:02:34.8]} 14... Bxd5 {[%clk 0:02:19]} 15. exd5 {[%clk 0:02:36.5]}
15... Rc8 {[%clk 0:02:20.6]} 16. Na5 {[%clk 0:01:22.2]} 16... Nxd5 {[%clk
0:02:21.1]} 17. Qxd5 {[%clk 0:01:23.8]} 17... Qxa5 {[%clk 0:02:22.5]} 18. g6
{[%clk 0:01:25]} 18... hxg6 {[%clk 0:02:07.9]} 19. Rxg6 {[%clk 0:01:26.9]} 19...
Qa4 {[%clk 0:01:33.4]} 20. Rg2 {[%clk 0:01:04.8]} 20... Nf4 {[%clk 0:01:29.8]}
21. Bxf4 {[%clk 0:01:02.3]} 21... Qxf4+ {[%clk 0:01:31.7]} 22. Kb1 {[%clk
0:01:03.3]} 22... Rc5 {[%clk 0:01:16.7]} 23. Qb7 {[%clk 0:01:03.6]} 23... Bf6
{[%clk 0:01:17.7]} 24. Rg4 {[%clk 0:00:27.5]} 24... Qe3 {[%clk 0:01:18.3]} 25.
Bd3 {[%clk 0:00:25]} 25... d5 {[%clk 0:01:11.7]} 26. Qxa6 {[%clk 0:00:21.5]}
26... Qxf3 {[%clk 0:00:58.9]} 27. Rdg1 {[%clk 0:00:20.4]} 27... e4 {[%clk
0:00:48.5]} 28. Bxb5 {[%clk 0:00:20.5]} 28... g6 {[%clk 0:00:24.8]} 29. a4
{[%clk 0:00:19.8]} 29... Bg7 {[%clk 0:00:25.4]} 30. h4 {[%clk 0:00:19.3]} 30...
Qf2 {[%clk 0:00:23.1]} 31. R4g2 {[%clk 0:00:19]} 31... Qd4 {[%clk 0:00:24.1]}
32. c3 {[%clk 0:00:20.2]} 32... Rxc3 {[%clk 0:00:24.7]} 33. bxc3 {[%clk
0:00:20.9]} 33... Qxc3 {[%clk 0:00:26.6]} 34. h5 {[%clk 0:00:20.2]} 34... Rc8
{[%clk 0:00:22.2]} 35. Qxc8+ {[%clk 0:00:15.1]} 35... Qxc8 {[%clk 0:00:24.1]}
36. hxg6 {[%clk 0:00:16.5]} 36... f5 {[%clk 0:00:24.3]} 37. Rc1 {[%clk
0:00:15.8]} 37... Qf8 {[%clk 0:00:24]} 38. Rgc2 {[%clk 0:00:17.7]} 38... Qb4+
{[%clk 0:00:22.7]} 39. Ka2 {[%clk 0:00:17.5]} 39... Be5 {[%clk 0:00:21.5]} 40.
Rb1 {[%clk 0:00:16.8]} 40... Qd4 {[%clk 0:00:21.3]} 41. Bc6 {[%clk 0:00:17.6]}
41... Kg7 {[%clk 0:00:22.2]} 42. a5 {[%clk 0:00:16.5]} 42... Qd3 {[%clk
0:00:18.1]} 43. Ba4 {[%clk 0:00:16]} 43... f4 {[%clk 0:00:15.6]} 44. Rb7+ {[%clk
0:00:12.8]} 44... Kxg6 {[%clk 0:00:15.5]} 45. a6 {[%clk 0:00:14.1]} 45... Bd4
{[%clk 0:00:12.2]} 46. a7 {[%clk 0:00:11]} 46... Bxa7 {[%clk 0:00:10.2]} 47.
Rxa7 {[%clk 0:00:12.9]} 47... f3 {[%clk 0:00:11.5]} 48. Rac7 {[%clk 0:00:07]}
48... Qd4 {[%clk 0:00:12]} 49. R7c6+ {[%clk 0:00:07.5]} 49... Kg5 {[%clk
0:00:12.7]} 50. Bb3 {[%clk 0:00:09.2]} 50... f2 {[%clk 0:00:13]} 51. Rc1 {[%clk
0:00:09]} 51... Qd2+ {[%clk 0:00:13.6]} 52. R6c2 {[%clk 0:00:08.8]} 52... Qa5+
{[%clk 0:00:14.8]} 53. Kb2 {[%clk 0:00:09.7]} 53... e3 {[%clk 0:00:16.3]} 54.
Bxd5 {[%clk 0:00:10]} 54... Qxd5 {[%clk 0:00:15.4]} 55. Rc5 {[%clk 0:00:11.4]}
55... Qxc5 {[%clk 0:00:16.9]} 56. Rxc5+ {[%clk 0:00:12.9]} 56... Kg4 {[%clk
0:00:18.3]} 57. Rc1 {[%clk 0:00:10.9]} 57... e2 {[%clk 0:00:19.7]} 58. Rc4+
{[%clk 0:00:08.5]} 58... Kg3 {[%clk 0:00:20.8]} 59. Rc3+ {[%clk 0:00:09.4]}
59... Kg2 {[%clk 0:00:22.1]} 0-1

[Event "*** Titled Tuesday Blitz"]
[Site "Chess.com"]
[Date "2020.02.04"]
[Round "4"]
[White "inegrepus"]
[Black "LLRChess"]
[Result "0-1"]
[WhiteElo "2265"]
[BlackElo "2497"]
[TimeControl "180+2"]
[EndTime "9:53:50 PST"]
[Termination "LLRChess won on time"]

1. d4 {[%clk 0:03:01.9]} 1... f5 {[%clk 0:02:57.4]} 2. h3 {[%clk 0:02:59.3]}
2... d5 {[%clk 0:02:55.9]} 3. c4 {[%clk 0:02:57]} 3... e6 {[%clk 0:02:54.6]} 4.
Nc3 {[%clk 0:02:57.6]} 4... Nf6 {[%clk 0:02:55.6]} 5. Bg5 {[%clk 0:02:54.2]}
5... c6 {[%clk 0:02:53.9]} 6. e3 {[%clk 0:02:55]} 6... Bd6 {[%clk 0:02:54.1]} 7.
Bd3 {[%clk 0:02:53.8]} 7... h6 {[%clk 0:02:50.1]} 8. Bh4 {[%clk 0:02:52.8]} 8...
g5 {[%clk 0:02:50]} 9. Bg3 {[%clk 0:02:51.7]} 9... Bxg3 {[%clk 0:02:50.8]} 10.
fxg3 {[%clk 0:02:52.3]} 10... Qd6 {[%clk 0:02:50.5]} 11. Nge2 {[%clk 0:02:44.7]}
11... Nbd7 {[%clk 0:02:47.7]} 12. O-O {[%clk 0:02:44.9]} 12... b6 {[%clk
0:02:43.3]} 13. cxd5 {[%clk 0:02:44.1]} 13... cxd5 {[%clk 0:02:43.5]} 14. Nb5
{[%clk 0:02:38.7]} 14... Qb8 {[%clk 0:02:43.9]} 15. Rc1 {[%clk 0:02:34.7]} 15...
Bb7 {[%clk 0:02:39.6]} 16. Nc7+ {[%clk 0:02:31.4]} 16... Ke7 {[%clk 0:02:40]}
17. Qc2 {[%clk 0:02:17.3]} 17... Rc8 {[%clk 0:02:34.4]} 18. Qc3 {[%clk 0:01:56]}
18... Kf7 {[%clk 0:02:30.3]} 19. Bb5 {[%clk 0:01:45.7]} 19... Ne4 {[%clk
0:02:15.7]} 20. Qc2 {[%clk 0:01:15]} 20... Ndf6 {[%clk 0:02:16.5]} 21. g4 {[%clk
0:01:09.7]} 21... a6 {[%clk 0:02:13.9]} 22. Bd3 {[%clk 0:00:59.7]} 22... Ra7
{[%clk 0:02:10.8]} 23. gxf5 {[%clk 0:00:59.4]} 23... exf5 {[%clk 0:02:08.7]} 24.
Rxf5 {[%clk 0:00:59.4]} 24... Ba8 {[%clk 0:02:07.3]} 25. Bxe4 {[%clk 0:00:54.9]}
25... Raxc7 {[%clk 0:02:06.4]} 26. Qb3 {[%clk 0:00:21.3]} 26... Rxc1+ {[%clk
0:02:06.2]} 27. Nxc1 {[%clk 0:00:23.1]} 27... Rxc1+ {[%clk 0:02:07.8]} 28. Kf2
{[%clk 0:00:24.3]} 28... Qd6 {[%clk 0:02:02.5]} 29. Bd3 {[%clk 0:00:17.6]} 29...
Kg7 {[%clk 0:02:00.6]} 30. Qa4 {[%clk 0:00:14.6]} 30... b5 {[%clk 0:01:58.1]}
31. Qa5 {[%clk 0:00:14.6]} 31... Qh2 {[%clk 0:01:26.5]} 32. Qd8 {[%clk
0:00:09.9]} 32... Qg1+ {[%clk 0:01:27.3]} 33. Ke2 {[%clk 0:00:11.1]} 33... Qd1+
{[%clk 0:01:12.1]} 34. Kf2 {[%clk 0:00:12.1]} 34... Qd2+ {[%clk 0:00:46.2]} 35.
Kg3 {[%clk 0:00:10.4]} 35... Qxe3+ {[%clk 0:00:46.7]} 36. Rf3 {[%clk 0:00:09.9]}
36... Qe6 {[%clk 0:00:45.8]} 37. Bf5 {[%clk 0:00:09]} 37... Qe8 {[%clk
0:00:32.8]} 38. Qd6 {[%clk 0:00:07.4]} 38... Rc6 {[%clk 0:00:28.8]} 39. Qb4
{[%clk 0:00:06.6]} 39... Qb8+ {[%clk 0:00:28.8]} 40. Kf2 {[%clk 0:00:07.1]}
40... Qd6 {[%clk 0:00:29.6]} 41. Qd2 {[%clk 0:00:07.3]} 41... Rc7 {[%clk
0:00:26.1]} 42. Bd3 {[%clk 0:00:07.8]} 42... Re7 {[%clk 0:00:25.1]} 43. h4
{[%clk 0:00:08.7]} 43... Ne4+ {[%clk 0:00:23.7]} 44. Bxe4 {[%clk 0:00:08.1]}
44... dxe4 {[%clk 0:00:19.4]} 45. Re3 {[%clk 0:00:05.7]} 45... Qf4+ {[%clk
0:00:19.5]} 46. Kg1 {[%clk 0:00:07]} 46... Bd5 {[%clk 0:00:19.7]} 47. b3 {[%clk
0:00:07.5]} 47... Rf7 {[%clk 0:00:19.3]} 48. Qc3 {[%clk 0:00:08.1]} 48... Qf1+
{[%clk 0:00:20]} 49. Kh2 {[%clk 0:00:09.4]} 49... Rf2 {[%clk 0:00:21.5]} 50. Rg3
{[%clk 0:00:09.4]} 50... Rf7 {[%clk 0:00:15.8]} 51. hxg5 {[%clk 0:00:10.4]}
51... Qf4 {[%clk 0:00:16.1]} 52. gxh6+ {[%clk 0:00:10.8]} 52... Kh7 {[%clk
0:00:15.7]} 53. Qc8 {[%clk 0:00:09.5]} 53... Rf8 {[%clk 0:00:10.2]} 54. Qd7+
{[%clk 0:00:09.6]} 54... Bf7 {[%clk 0:00:11.2]} 55. Qe7 {[%clk 0:00:10]} 55...
Rg8 {[%clk 0:00:09.6]} 56. d5 {[%clk 0:00:02.6]} 56... Qxg3+ {[%clk 0:00:10.5]}
0-1

[Event "*** Titled Tuesday Blitz"]
[Site "Chess.com"]
[Date "2020.02.04"]
[Round "4"]
[White "Misha_Bilous"]
[Black "WelshTiger"]
[Result "0-1"]
[WhiteElo "2478"]
[BlackElo "2291"]
[TimeControl "180+2"]
[EndTime "9:53:59 PST"]
[Termination "WelshTiger won by resignation"]

1. d4 {[%clk 0:03:01.9]} 1... Nf6 {[%clk 0:03:01.1]} 2. c4 {[%clk 0:03:03.2]}
2... c5 {[%clk 0:03:02.3]} 3. d5 {[%clk 0:03:04.2]} 3... e6 {[%clk 0:03:04]} 4.
Nc3 {[%clk 0:03:04.8]} 4... exd5 {[%clk 0:03:05.5]} 5. cxd5 {[%clk 0:03:06.7]}
5... d6 {[%clk 0:03:07.2]} 6. Nf3 {[%clk 0:03:08]} 6... g6 {[%clk 0:03:08.2]} 7.
g3 {[%clk 0:03:09.6]} 7... Bg7 {[%clk 0:03:08.8]} 8. Bg2 {[%clk 0:03:11.3]} 8...
O-O {[%clk 0:03:10]} 9. O-O {[%clk 0:03:12.9]} 9... Re8 {[%clk 0:03:10.2]} 10.
Nd2 {[%clk 0:03:13.3]} 10... a6 {[%clk 0:03:10.6]} 11. a4 {[%clk 0:03:13.7]}
11... Nbd7 {[%clk 0:03:11.8]} 12. h3 {[%clk 0:03:12.3]} 12... Rb8 {[%clk
0:03:06.2]} 13. Nc4 {[%clk 0:03:10.6]} 13... Nb6 {[%clk 0:03:07.2]} 14. Na3
{[%clk 0:03:09.9]} 14... Bd7 {[%clk 0:03:07.6]} 15. a5 {[%clk 0:03:10.8]} 15...
Na8 {[%clk 0:03:03.3]} 16. Nc4 {[%clk 0:03:10]} 16... Bb5 {[%clk 0:03:02.9]} 17.
Qb3 {[%clk 0:03:10.2]} 17... Bxc4 {[%clk 0:03:02.8]} 18. Qxc4 {[%clk 0:03:12.1]}
18... Nc7 {[%clk 0:03:04.2]} 19. e4 {[%clk 0:03:03.6]} 19... Qd7 {[%clk
0:02:54.1]} 20. b4 {[%clk 0:02:29.6]} 20... Nb5 {[%clk 0:02:34]} 21. Bb2 {[%clk
0:02:16.7]} 21... Rec8 {[%clk 0:02:29.1]} 22. Nxb5 {[%clk 0:02:01.2]} 22... axb5
{[%clk 0:02:29.4]} 23. Qb3 {[%clk 0:01:48.8]} 23... c4 {[%clk 0:02:28.6]} 24.
Qe3 {[%clk 0:01:45.9]} 24... c3 {[%clk 0:02:03.3]} 25. Ba3 {[%clk 0:01:19.8]}
25... Rc4 {[%clk 0:02:02.6]} 26. Rac1 {[%clk 0:01:18.4]} 26... Re8 {[%clk
0:01:57.7]} 27. Qd3 {[%clk 0:00:54.1]} 27... Nxe4 {[%clk 0:01:54.1]} 28. Rfe1
{[%clk 0:00:54.7]} 28... Nd2 {[%clk 0:01:39]} 29. Re3 {[%clk 0:00:22.1]} 29...
Rxe3 {[%clk 0:01:35.8]} 30. Qxe3 {[%clk 0:00:23]} 30... Bd4 {[%clk 0:01:32.7]}
31. Qe2 {[%clk 0:00:19.3]} 31... Qf5 {[%clk 0:01:26.1]} 32. Re1 {[%clk
0:00:09.4]} 32... Kg7 {[%clk 0:01:06.4]} 33. Bc1 {[%clk 0:00:09.5]} 33... Rxb4
{[%clk 0:01:00]} 34. Bxd2 {[%clk 0:00:08.9]} 34... cxd2 {[%clk 0:01:00.9]} 35.
Qxd2 {[%clk 0:00:10]} 35... Bc5 {[%clk 0:00:43.7]} 36. Qc3+ {[%clk 0:00:05.3]}
36... Qf6 {[%clk 0:00:36.6]} 37. Qxf6+ {[%clk 0:00:05]} 37... Kxf6 {[%clk
0:00:38]} 38. Bf1 {[%clk 0:00:05.6]} 38... Rb2 {[%clk 0:00:38.4]} 39. Re2 {[%clk
0:00:06.6]} 39... Rb1 {[%clk 0:00:39.7]} 40. Kg2 {[%clk 0:00:05.6]} 40... b4
{[%clk 0:00:40.6]} 41. Re4 {[%clk 0:00:04.3]} 41... Ra1 {[%clk 0:00:41.1]} 42.
Rf4+ {[%clk 0:00:04.8]} 42... Kg7 {[%clk 0:00:41.5]} 43. Bc4 {[%clk 0:00:05.3]}
43... Rxa5 {[%clk 0:00:42.3]} 44. Rf3 {[%clk 0:00:06.3]} 44... b5 {[%clk
0:00:42.7]} 45. Bb3 {[%clk 0:00:06.7]} 45... Ra1 {[%clk 0:00:42.3]} 46. Rd3
{[%clk 0:00:07.6]} 46... Rc1 {[%clk 0:00:43.1]} 47. h4 {[%clk 0:00:05.6]} 47...
h5 {[%clk 0:00:41.2]} 48. Kf3 {[%clk 0:00:02.6]} 48... Rc3 {[%clk 0:00:42.2]}
49. Ke2 {[%clk 0:00:03.7]} 49... Kf6 {[%clk 0:00:42.4]} 50. Rf3+ {[%clk
0:00:04.2]} 50... Rxf3 {[%clk 0:00:42.8]} 51. Kxf3 {[%clk 0:00:05.8]} 51... Ke5
{[%clk 0:00:44.7]} 52. Ke2 {[%clk 0:00:05.4]} 52... Kd4 {[%clk 0:00:45.8]} 53.
Kd2 {[%clk 0:00:07]} 53... Ke4 {[%clk 0:00:46.8]} 54. Ke2 {[%clk 0:00:07.2]}
54... f5 {[%clk 0:00:40.4]} 55. f3+ {[%clk 0:00:08]} 55... Kd4 {[%clk
0:00:41.5]} 56. Kd2 {[%clk 0:00:09.3]} 56... Ba7 {[%clk 0:00:37.6]} 57. Ba2
{[%clk 0:00:09.5]} 57... Bb6 {[%clk 0:00:38.6]} 58. Bb3 {[%clk 0:00:10.9]} 58...
Bd8 {[%clk 0:00:39.6]} 59. Ba2 {[%clk 0:00:09.6]} 59... f4 {[%clk 0:00:40.7]}
60. gxf4 {[%clk 0:00:09]} 60... Bxh4 {[%clk 0:00:41.5]} 61. Bb3 {[%clk
0:00:09.5]} 61... Bf6 {[%clk 0:00:42.3]} 62. Bd1 {[%clk 0:00:07]} 62... h4
{[%clk 0:00:43.2]} 63. f5 {[%clk 0:00:03.9]} 63... gxf5 {[%clk 0:00:39.1]} 64.
f4 {[%clk 0:00:05.5]} 64... Ke4 {[%clk 0:00:38]} 65. Kc2 {[%clk 0:00:03.9]}
65... h3 {[%clk 0:00:38.3]} 66. Kb3 {[%clk 0:00:04.7]} 66... h2 {[%clk
0:00:38.4]} 67. Bc2+ {[%clk 0:00:06.2]} 67... Ke3 {[%clk 0:00:39]} 68. Kxb4
{[%clk 0:00:05.4]} 68... h1=Q {[%clk 0:00:39.5]} 69. Bb3 {[%clk 0:00:04.8]}
69... Qb1 {[%clk 0:00:36.7]} 70. Ka3 {[%clk 0:00:05.8]} 70... Qb2+ {[%clk
0:00:36.4]} 71. Kb4 {[%clk 0:00:06.7]} 71... Bc3+ {[%clk 0:00:37.6]} 72. Kxb5
{[%clk 0:00:07.7]} 72... Qxb3+ {[%clk 0:00:39.2]} 73. Kc6 {[%clk 0:00:09.1]}
73... Kd4 {[%clk 0:00:39.9]} 74. Kxd6 {[%clk 0:00:10.3]} 74... Qxd5+ {[%clk
0:00:41]} 75. Kc7 {[%clk 0:00:11.9]} 75... Qe6 {[%clk 0:00:39.5]} 76. Kb7 {[%clk
0:00:13.2]} 76... Kc5 {[%clk 0:00:40.3]} 77. Ka7 {[%clk 0:00:15.1]} 77... Qd7+
{[%clk 0:00:38]} 78. Ka8 {[%clk 0:00:16.3]} 78... Kb6 {[%clk 0:00:37.4]} 0-1